bitfinex-derivatives/quotes_SOLF0:USTF0_20241107
["timestamp","ask_amount","ask_price","bid_price","bid_amount"]
[1730999670308,14.94586998,194.19,194.12,2.3915]
[1730999671202,47.83223916,194.28,194.12,2.3915]
[1730999671410,3.74,194.35,194.19,12.37406998]
[1730999671710,3.74,194.34,194.21,2.5715]
[1730999671902,12.37406998,194.26,194.13,1.2763]
[1730999672205,2.60522179,194.27,194.13,1.2763]
[1730999672513,47.82321856,194.31,194.13,13.65036998]
[1730999672706,4.34,194.37,194.2,12.37406998]
[1730999672906,12.37406998,194.31,194.2,12.37406998]
[1730999673103,12.37406998,194.31,194.18,12.37406998]
[1730999673309,12.37406998,194.28,194.14,41.12011745]
[1730999673509,12.37406998,194.26,194.15,12.37406998]
[1730999673815,12.37406998,194.26,194.15,14.94636998]
[1730999674009,12.37406998,194.26,194.15,12.37406998]
[1730999675017,12.37406998,194.23,194.14,41.12011745]
[1730999675410,12.37406998,194.25,194.14,41.12011745]
[1730999675813,12.37406998,194.22,194.14,41.12011745]
[1730999676010,12.37406998,194.22,194.14,2.498]
[1730999677121,2.5719,194.19,194.14,2.498]
[1730999677524,12.37406998,194.22,194.14,2.498]
[1730999677721,2.5716,194.21,194.14,2.498]
[1730999677916,12.37406998,194.22,194.14,2.498]
[1730999678519,2.5718,194.19,194.14,2.498]
[1730999679826,2.572,194.18,194.14,2.498]
[1730999680022,16.71406998,194.22,194.14,2.498]
[1730999680525,12.37406998,194.19,194.14,2.498]
[1730999681639,12.37406998,194.17,193.85,15.46]
[1730999681930,12.37406998,194.17,194.06,12.37406998]
[1730999682931,14.94616998,194.17,194.1,2.573]
[1730999684123,14.94616998,194.17,194.06,12.37406998]
[1730999684124,2.5266082,194.19,194.14,2.5724]
[1730999684332,12.37406998,194.2,194.09,12.37406998]
[1730999684534,2.55339112,194.19,194.09,12.37406998]
[1730999685131,12.37406998,194.18,194.09,12.37406998]
[1730999685534,7.91245471,194.15,194.1,7.91245471]
[1730999686437,2.5719,194.18,194.12,2.5727]
[1730999686642,4.34,194.22,194.12,10.48515471]
[1730999686643,7.91245471,194.17,194.12,10.48515471]
[1730999686943,7.91245471,194.17,194.12,7.91245471]
[1730999687536,7.91245471,194.17,194.12,10.48515471]
[1730999688037,7.91245471,194.17,194.12,10.48505471]
[1730999690341,7.91245471,194.17,194.12,7.91245471]
[1730999691235,7.91245471,194.15,194.05,2.4987]
[1730999691436,7.91245471,194.16,194.05,2.4987]
[1730999691640,7.91245471,194.16,194.1,7.91245471]
[1730999692032,2.54217707,194.19,194.1,7.91245471]
[1730999692238,10.48465471,194.17,194.1,10.48545471]
[1730999692638,10.50831521,194.18,194.1,7.91245471]
[1730999692840,7.91245471,194.18,194.1,7.91245471]
[1730999693141,7.91245471,194.15,194.09,7.91245471]
[1730999693337,7.91245471,194.15,194.05,2.4987]
[1730999693545,10.48485471,194.15,194.09,7.91245471]
[1730999693746,7.91245471,194.16,194.1,7.91245471]
[1730999694043,7.91245471,194.18,194.12,7.91245471]
[1730999694643,39.7183172,194.29,194.12,7.91245471]
[1730999694942,7.91245471,194.19,194.12,7.91245471]
[1730999695143,39.7183172,194.29,194.05,2.4987]
[1730999695144,7.91245471,194.13,194.05,2.4987]
[1730999695447,7.91245471,194.15,194.1,7.91245471]
[1730999696650,4.34,194.21,194.1,7.91245471]
[1730999696651,7.91245471,194.17,194.1,7.91245471]
[1730999697548,7.91245471,194.17,194.12,2.5727]
[1730999699146,1.0,194.28,194.14,7.91245471]
[1730999699347,7.91245471,194.22,194.16,7.91245471]
[1730999700054,4.34,194.27,194.16,7.91245471]
[1730999700055,2.5713,194.23,194.18,7.91245471]
[1730999700348,2.61879073,194.26,194.16,10.48455471]
[1730999700549,7.91245471,194.23,194.16,10.48455471]
[1730999700743,2.5714,194.22,194.16,10.48455471]
[1730999700947,7.91245471,194.21,194.16,10.48455471]
[1730999701144,7.91245471,194.21,194.18,2.5719]
[1730999701343,4.34,194.32,194.2,7.91245471]
[1730999701650,7.91245471,194.27,194.21,10.48395471]
[1730999701848,4.34,194.34,194.21,7.91245471]
[1730999702040,7.91245471,194.28,194.21,7.91245471]
[1730999702242,7.91245471,194.28,194.22,2.5714]
[1730999702748,10.48315471,194.28,194.22,2.5714]
[1730999702942,10.48315471,194.28,194.14,1.2953]
[1730999703145,10.48315471,194.28,194.21,7.91245471]
[1730999703452,7.91245471,194.28,194.23,10.48365471]
[1730999703648,7.91245471,194.28,194.23,7.91245471]
[1730999704158,7.91245471,194.28,194.24,2.571]
[1730999704846,7.91245471,194.24,194.18,2.5718]
[1730999705157,7.91245471,194.24,194.14,1.2953]
[1730999705158,7.91245471,194.2,194.14,1.2953]
[1730999705447,7.91245471,194.2,194.14,9.20775471]
[1730999705852,10.48425471,194.2,194.14,11.78005471]
[1730999706047,7.91245471,194.18,194.14,7.91245471]
[1730999706255,10.48445471,194.18,194.14,7.91245471]
[1730999706746,10.48445471,194.18,194.13,1.2786]
[1730999707050,7.91245471,194.17,194.05,1.2528]
[1730999707253,7.91245471,194.15,194.06,1.1769]
[1730999707549,2.5726,194.14,194.08,2.5731]
[1730999707855,4.18,194.17,194.06,13.54200124]
[1730999708048,2.5726,194.13,194.08,2.5732]
[1730999708352,4.18,194.17,194.07,12.36510124]
[1730999708552,12.36510124,194.21,194.09,12.36510124]
[1730999708756,6.79559026,194.2,194.09,12.36510124]
[1730999709052,2.5711,194.25,194.18,2.5719]
[1730999709249,50.40038014,194.36,194.17,12.36510124]
[1730999709250,16.54510124,194.3,194.17,12.36510124]
[1730999710644,16.54510124,194.3,194.13,1.1769]
[1730999710848,12.36510124,194.27,194.15,12.36510124]
[1730999711148,2.5716,194.21,194.15,12.36510124]
[1730999711338,4.18,194.3,194.13,1.1769]
[1730999711339,2.59057025,194.24,194.13,1.1769]
[1730999711539,12.36510124,194.25,194.13,13.54200124]
[1730999711739,2.5719,194.18,194.13,1.1769]
[1730999712054,2.60833328,194.22,194.13,13.54200124]
[1730999712253,12.36510124,194.25,194.13,13.54200124]
[1730999712442,12.36510124,194.19,194.12,1.1787]
[1730999712756,12.36510124,194.19,194.1,2.5729]
[1730999712757,2.5723,194.16,194.1,2.5729]
[1730999713053,2.58670872,194.18,194.07,12.36510124]
[1730999713554,2.5723,194.15,194.09,2.573]
[1730999713754,2.5723,194.15,194.07,12.36510124]
[1730999714549,2.5722,194.16,194.1,2.5729]
[1730999715151,2.5723,194.15,194.1,2.5729]
[1730999716057,2.5721,194.17,194.07,12.36510124]
[1730999716446,4.18,194.2,194.1,12.36510124]
[1730999716646,6.7517,194.2,194.15,2.5723]
[1730999717657,2.5718,194.19,194.15,2.5723]
[1730999719258,2.5723,194.16,194.13,2.4949]
[1730999719559,12.36510124,194.19,194.07,12.36510124]
[1730999720160,12.36510124,194.19,194.09,12.36510124]
[1730999720457,2.5723,194.16,194.11,2.5728]
[1730999721254,12.36510124,194.19,194.04,2.4452]
[1730999721461,12.36510124,194.19,194.06,12.36510124]
[1730999721654,12.36510124,194.16,194.06,12.36510124]
[1730999721856,2.5728,194.12,194.07,2.5733]
[1730999722553,4.18,194.2,194.06,12.36510124]
[1730999722758,12.36510124,194.19,194.06,12.36510124]
[1730999723168,2.5726,194.13,194.08,2.5731]
[1730999724464,12.36510124,194.17,194.05,12.36510124]
[1730999724465,2.5723,194.15,194.09,2.573]
[1730999724664,12.36510124,194.17,194.04,1.2232]
[1730999724961,2.5727,194.13,194.08,2.5732]
[1730999725160,12.36510124,194.17,194.08,2.5732]
[1730999725765,2.5727,194.12,194.08,2.5732]
[1730999725961,12.36510124,194.17,194.06,2.5734]
[1730999726262,12.36510124,194.17,194.05,12.36510124]
[1730999726459,4.18,194.2,194.05,12.36510124]
[1730999726460,12.36510124,194.14,194.05,12.36510124]
[1730999726651,3.94,194.13,194.06,2.5735]
[1730999727358,12.36510124,194.12,194.0,12.36510124]
[1730999727758,2.5733,194.08,194.04,2.5737]
[1730999727955,12.36510124,194.12,193.96,4.35930484]
[1730999728160,12.36510124,194.12,194.0,12.36510124]
[1730999728367,2.5731,194.1,194.04,2.5737]
[1730999728565,2.5731,194.1,194.0,12.36510124]
[1730999729072,12.36510124,194.12,194.0,12.36510124]
[1730999729274,2.5732,194.09,194.04,2.5737]
[1730999729468,12.36510124,194.12,194.04,2.5737]
[1730999729665,2.5732,194.09,194.04,2.5737]
[1730999729866,18.82205722,194.14,194.05,2.5736]
[1730999730070,18.82205722,194.14,194.03,12.36510124]
[1730999730071,16.30510124,194.14,194.03,12.36510124]
[1730999730267,2.5729,194.11,194.03,12.36510124]
[1730999730465,18.87280333,194.14,194.05,2.5735]
[1730999730866,2.5729,194.11,194.05,2.5735]
[1730999731269,12.36510124,194.12,194.03,2.5739]
[1730999731471,2.5733,194.08,193.99,12.36510124]
[1730999732266,2.5733,194.08,194.02,2.5739]
[1730999732570,2.5733,194.08,193.99,12.36510124]
[1730999734073,2.5733,194.08,194.03,2.5739]
[1730999734979,12.36510124,194.04,193.86,3.94]
[1730999735176,3.94,194.03,193.94,2.5695]
[1730999735482,3.94,194.03,193.96,2.5748]
[1730999735673,3.94,194.03,193.94,2.5695]
[1730999735872,6.5699317,194.03,193.94,2.5695]
[1730999736368,3.94,194.03,193.94,2.5695]
[1730999736568,3.94,194.03,193.95,12.36510124]
[1730999737278,3.94,194.03,194.01,2.5741]
[1730999738167,3.94,194.03,194.02,2.574]
[1730999738574,3.94,194.12,194.0,12.36510124]
[1730999738779,2.5751963,194.11,194.01,1.301]
[1730999739281,16.30510124,194.12,194.02,2.5418]
[1730999739477,12.36510124,194.1,194.03,2.5739]
[1730999739675,2.58679048,194.09,194.03,2.5739]
[1730999739871,2.5733,194.08,194.03,2.5739]
[1730999740078,12.36510124,194.1,194.02,2.5418]
[1730999740771,2.63340274,194.09,194.02,2.5418]
[1730999741175,2.5733,194.08,194.03,2.5739]
[1730999741582,12.36510124,194.1,194.03,2.5739]
[1730999741783,12.36510124,194.1,194.02,2.5418]
[1730999742687,3.94,194.11,194.02,2.5418]
[1730999742881,14.89906224,194.12,194.02,14.90690124]
[1730999743084,2.5729,194.11,194.06,2.5734]
[1730999744992,2.573,194.1,194.06,2.5734]
[1730999746485,2.5729,194.11,194.06,2.5734]
[1730999748087,12.36510124,194.09,194.02,2.5418]
[1730999748781,14.92906477,194.09,194.02,2.5418]
[1730999749084,17.50226477,194.09,194.02,5.1157]
[1730999749279,14.92906477,194.09,194.02,5.1157]
[1730999749485,2.5732,194.08,194.02,5.1157]
[1730999749683,12.36510124,194.12,194.05,2.5735]
[1730999749883,2.60441484,194.11,194.02,2.5418]
[1730999750082,12.36510124,194.12,194.02,2.5418]
[1730999750485,2.59668661,194.11,194.02,2.5418]
[1730999750687,5.16958661,194.11,194.05,2.5735]
[1730999751786,2.5729,194.11,194.05,2.5735]
[1730999751984,12.36510124,194.12,194.02,2.5418]
[1730999752187,64.16855894,194.15,194.02,2.5418]
[1730999752989,2.5729,194.11,194.05,2.5736]
[1730999753187,2.5729,194.11,194.02,2.5418]
[1730999753385,64.16855894,194.15,194.02,2.5418]
[1730999753778,12.36510124,194.08,193.9,5.1512]
[1730999753989,12.36510124,194.08,193.98,2.4071]
[1730999754187,16.30510124,194.08,193.98,2.4071]
[1730999754590,2.5736,194.06,194.0,2.5742]
[1730999754791,2.5736,194.06,193.98,2.4071]
[1730999754996,6.5133,194.08,194.02,2.5739]
[1730999755187,3.94,194.08,194.02,12.36510124]
[1730999755394,3.94,194.13,194.02,12.36510124]
[1730999756190,2.573,194.11,194.06,2.5735]
[1730999757488,12.36510124,194.17,194.06,2.5735]
[1730999757688,6.52018182,194.16,194.07,2.5163]
[1730999758191,2.5729,194.11,194.07,2.5163]
[1730999759098,2.5726,194.13,194.07,2.5163]
[1730999759293,3.94,194.15,194.07,2.5163]
[1730999759294,3.94,194.15,194.07,17.45470124]
[1730999759894,2.5728,194.12,194.07,17.45470124]
[1730999760492,2.5729,194.11,194.07,2.5163]
[1730999761591,2.5725,194.14,194.08,2.5731]
[1730999761792,12.36510124,194.18,194.09,12.36510124]
[1730999761992,12.36510124,194.21,194.12,12.36510124]
[1730999762193,2.5715,194.21,194.14,2.5724]
[1730999762392,3.94,194.23,194.14,2.5724]
[1730999762903,2.5716,194.21,194.14,2.5724]
[1730999763295,2.5716,194.21,194.12,12.36510124]
[1730999763491,12.36510124,194.26,194.14,12.36510124]
[1730999763696,12.36510124,194.26,194.15,2.4264]
[1730999763697,16.30510124,194.26,194.15,2.4264]
[1730999764092,2.5713,194.23,194.17,2.5719]
[1730999764599,12.36510124,194.24,194.15,2.4264]
[1730999764997,12.36510124,194.21,194.1,12.36510124]
[1730999765502,12.36510124,194.19,194.1,12.36510124]
[1730999765697,16.30510124,194.19,194.1,12.36510124]
[1730999765899,16.30510124,194.19,194.09,2.4225]
[1730999766096,12.36510124,194.16,194.09,2.4225]
[1730999766299,2.5726,194.13,194.09,2.4225]
[1730999766500,3.94,194.19,194.09,2.4225]
[1730999766702,12.36510124,194.18,194.09,2.4225]
[1730999766895,12.36510124,194.18,194.11,2.5728]
[1730999767301,3.94,194.19,194.11,2.5728]
[1730999767502,2.5721,194.17,194.11,2.5728]
[1730999767701,2.5721,194.17,194.09,2.4225]
[1730999767702,3.94,194.19,194.09,2.4225]
[1730999768503,6.5118,194.19,194.13,2.5725]
[1730999768904,6.5118,194.19,194.09,2.4225]
[1730999768905,3.94,194.19,194.09,2.4225]
[1730999769207,3.94,194.19,194.1,19.77746737]
[1730999769416,3.94,194.24,194.1,19.77746737]
[1730999769904,35.25746737,194.39,194.1,19.77746737]
[1730999769905,6.56224258,194.28,194.14,19.77746737]
[1730999770099,19.77746737,194.3,194.14,19.77746737]
[1730999770301,19.77746737,194.27,194.12,19.77746737]
[1730999770502,2.56328975,194.26,194.12,19.77746737]
[1730999771103,2.5715,194.22,194.17,2.572]
[1730999772107,19.77746737,194.3,194.16,19.77746737]
[1730999772301,3.94,194.29,194.17,3.6436]
[1730999774420,3.94,194.29,194.21,2.5714]
[1730999775319,3.94,194.29,194.17,3.6436]
[1730999775817,2.5714,194.22,194.17,2.464]
[1730999776023,19.77746737,194.26,194.17,2.464]
[1730999776219,23.71746737,194.29,194.17,2.464]
[1730999777515,2.5709,194.26,194.21,2.5715]
[1730999778020,2.5709,194.26,194.17,2.464]
[1730999778021,23.71746737,194.29,194.24,2.5711]
[1730999778219,23.71746737,194.29,194.17,2.464]
[1730999778622,2.5706,194.28,194.21,2.5714]
[1730999779019,23.71746737,194.29,194.21,2.5714]
[1730999779825,23.71746737,194.29,194.17,2.464]
[1730999781826,2.571,194.25,194.19,2.5717]
[1730999782131,23.71746737,194.29,194.17,2.464]
[1730999782522,2.5708,194.27,194.21,2.5714]
[1730999782727,2.5708,194.27,194.17,2.464]
[1730999783722,23.71746737,194.29,194.17,2.464]
[1730999783915,23.71746737,194.29,194.2,2.5715]
[1730999784328,2.5706,194.28,194.22,2.5713]
[1730999784918,6.4905,194.29,194.23,2.5712]
[1730999785523,2.5706,194.28,194.23,2.5712]
[1730999787030,2.5705,194.29,194.23,2.5712]
[1730999787836,2.5704,194.3,194.23,2.5712]
[1730999788029,23.69746737,194.32,194.23,2.5712]
[1730999788342,19.77746737,194.32,194.19,19.77746737]
[1730999788522,51.74225021,194.34,194.19,19.77746737]
[1730999788720,51.74225021,194.34,194.28,2.5705]
[1730999788721,47.82225021,194.34,194.28,2.5705]
[1730999788932,19.77746737,194.36,194.22,19.77746737]
[1730999789131,2.5698,194.35,194.22,19.77746737]
[1730999789329,2.5698,194.35,194.17,7.6516]
[1730999789330,14.92413058,194.35,194.24,12.35433058]
[1730999789531,3.92,194.37,194.17,7.6516]
[1730999789532,12.35433058,194.33,194.25,2.4363]
[1730999790122,2.5704,194.3,194.25,2.4363]
[1730999790441,2.5704,194.3,194.22,12.35433058]
[1730999791441,2.5704,194.3,194.25,2.5709]
[1730999792141,12.35433058,194.33,194.26,2.5708]
[1730999792635,2.5701,194.32,194.26,2.5708]
[1730999792831,12.35433058,194.33,194.26,2.5708]
[1730999793630,2.5702,194.31,194.26,2.5708]
[1730999795041,2.5701,194.32,194.27,2.5707]
[1730999795235,12.35433058,194.33,194.21,12.35433058]
[1730999795843,2.5702,194.31,194.21,12.35433058]
[1730999796235,2.5705,194.29,194.24,2.5711]
[1730999796538,12.35433058,194.31,194.19,12.35433058]
[1730999797446,2.5707,194.27,194.23,2.5713]
[1730999797641,12.35433058,194.31,194.19,12.35433058]
[1730999798042,14.92463058,194.31,194.24,2.5711]
[1730999798246,12.35433058,194.31,194.24,2.5711]
[1730999799041,12.35433058,194.31,194.25,2.5709]
[1730999799235,12.35433058,194.31,194.22,12.35433058]
[1730999800144,12.35433058,194.31,194.19,12.35433058]
[1730999800541,12.35433058,194.28,194.19,12.35433058]
[1730999800738,12.35433058,194.28,194.18,2.4363]
[1730999801141,2.5709,194.26,194.2,2.5716]
[1730999801651,2.5709,194.26,194.21,2.5714]
[1730999802146,2.571,194.25,194.21,2.5714]
[1730999802336,2.571,194.25,194.2,2.5716]
[1730999802750,2.59529742,194.26,194.18,2.4363]
[1730999802952,2.5709,194.26,194.21,2.5714]
[1730999803447,3.92,194.34,194.19,12.35433058]
[1730999803639,12.35433058,194.33,194.22,12.35433058]
[1730999803845,2.5703,194.31,194.26,2.5708]
[1730999804043,12.35433058,194.33,194.22,12.35433058]
[1730999805346,2.5704,194.3,194.22,12.35433058]
[1730999805943,2.5704,194.3,194.23,2.5712]
[1730999806144,12.35433058,194.3,194.19,12.35433058]
[1730999806441,12.35433058,194.3,194.18,2.4363]
[1730999806748,2.5708,194.27,194.18,2.4363]
[1730999806953,2.5708,194.27,194.22,2.5714]
[1730999807848,12.35433058,194.3,194.22,2.5714]
[1730999808248,2.5708,194.27,194.22,2.5714]
[1730999808752,12.35433058,194.3,194.22,2.5714]
[1730999811147,12.35433058,194.28,194.21,2.5714]
[1730999811852,12.35433058,194.28,194.22,2.5713]
[1730999812448,12.35433058,194.28,194.18,2.4363]
[1730999812651,14.92493058,194.28,194.23,2.5712]
[1730999813950,12.35433058,194.3,194.26,2.5708]
[1730999815654,14.92473058,194.3,194.26,2.5708]
[1730999816262,14.92473058,194.3,194.25,2.571]
[1730999816557,12.35433058,194.3,194.19,12.35433058]
[1730999816749,12.35433058,194.3,194.23,2.5712]
[1730999817257,2.5709,194.26,194.21,2.5715]
[1730999817753,2.53907028,194.26,194.18,2.4363]
[1730999818058,12.35433058,194.28,194.18,2.4363]
[1730999818751,12.35433058,194.3,194.18,2.4363]
[1730999818951,12.35433058,194.3,194.2,12.35433058]
[1730999819850,2.5706,194.29,194.2,12.35433058]
[1730999820757,12.35433058,194.3,194.18,2.4363]
[1730999821051,4.02,194.31,194.18,2.4363]
[1730999821052,12.35433058,194.27,194.18,2.4363]
[1730999821453,2.571,194.25,194.21,2.5715]
[1730999821858,12.35433058,194.27,194.18,2.4363]
[1730999822159,12.35433058,194.3,194.2,12.35433058]
[1730999822454,2.5706,194.28,194.23,2.5713]
[1730999822650,2.5706,194.28,194.21,1.1919]
[1730999823745,2.5706,194.28,194.24,2.571]
[1730999825457,2.5705,194.29,194.25,2.5709]
[1730999826058,12.35433058,194.3,194.21,1.1919]
[1730999826259,4.02,194.32,194.21,1.1919]
[1730999826859,2.5704,194.3,194.25,2.5709]
[1730999827060,12.35433058,194.33,194.25,2.5709]
[1730999827360,12.35433058,194.33,194.21,1.1919]
[1730999827361,2.5707,194.28,194.23,2.5712]
[1730999827553,2.5707,194.28,194.21,13.54623058]
[1730999828055,2.5707,194.28,194.23,2.5712]
[1730999828262,2.5707,194.28,194.21,13.54623058]
[1730999828454,2.5707,194.28,194.24,2.571]
[1730999829354,12.35433058,194.33,194.24,2.571]
[1730999829565,2.5707,194.27,194.24,2.571]
[1730999829861,12.35433058,194.33,194.25,2.5709]
[1730999830058,12.35433058,194.33,194.2,12.35433058]
[1730999830456,12.35433058,194.33,194.25,2.5709]
[1730999830655,2.5704,194.3,194.2,12.35433058]
[1730999831155,2.5704,194.3,194.25,2.5709]
[1730999832156,2.5702,194.31,194.22,12.35433058]
[1730999832658,2.5702,194.31,194.26,2.5707]
[1730999833563,2.5704,194.3,194.22,12.35433058]
[1730999833963,12.35433058,194.33,194.22,12.35433058]
[1730999834166,2.5702,194.32,194.28,2.5705]
[1730999834361,37.06,194.47,194.28,2.5705]
[1730999834560,2.5698,194.35,194.3,2.5703]
[1730999834770,2.52863606,194.37,194.3,2.5703]
[1730999834960,16.37433058,194.39,194.3,2.5703]
[1730999835564,19.0007265,194.39,194.3,2.5703]
[1730999836156,6.64639592,194.39,194.27,1.2607]
[1730999836357,12.35433058,194.33,194.27,1.2607]
[1730999837767,2.5701,194.32,194.28,2.5706]
[1730999837970,12.35433058,194.35,194.27,1.2607]
[1730999838376,14.92403058,194.35,194.3,2.5703]
[1730999838679,12.35433058,194.33,194.27,1.2607]
[1730999839263,2.5702,194.32,194.27,3.8314]
[1730999839861,2.5698,194.34,194.3,2.5703]
[1730999840572,12.35433058,194.33,194.26,1.1878]
[1730999840770,12.35433058,194.33,194.25,2.5709]
[1730999841271,10.47055926,194.3,194.26,2.5708]
[1730999841475,7.90015926,194.3,194.24,7.90015926]
[1730999841674,10.47025926,194.32,194.26,7.90015926]
[1730999841970,7.90015926,194.32,194.29,2.5704]
[1730999843371,3.88,194.37,194.3,2.5703]
[1730999843571,7.90015926,194.32,194.3,2.5703]
[1730999843772,3.88,194.37,194.28,7.90015926]
[1730999843974,10.47005926,194.34,194.29,2.5704]
[1730999844174,7.90015926,194.32,194.29,2.5704]
[1730999845077,3.88,194.37,194.31,7.90015926]
[1730999845078,2.5695,194.37,194.31,7.90015926]
[1730999845379,2.62639592,194.39,194.31,7.90015926]
[1730999845579,7.90015926,194.35,194.22,1.1964]
[1730999845779,7.90015926,194.32,194.26,7.90015926]
[1730999845982,74.70827399,194.55,194.01,339.0]
[1730999845983,4.16,194.36,194.01,339.0]
[1730999846181,4.16,194.35,194.1,1.1934]
[1730999846380,7.90015926,194.17,194.11,13.85069014]
[1730999846581,55.10875619,194.47,194.13,7.90015926]
[1730999846582,7.90015926,194.19,194.13,7.90015926]
[1730999847082,7.90015926,194.19,194.14,7.90015926]
[1730999847484,4.42,194.21,194.11,1.2376]
[1730999847675,16.77793175,194.21,194.11,1.2376]
[1730999848074,16.77793175,194.21,194.16,2.5722]
[1730999848281,4.42,194.21,194.16,2.5722]
[1730999848688,4.42,194.21,194.13,12.35793175]
[1730999848689,4.42,194.23,194.17,2.572]
[1730999848985,4.42,194.26,194.17,2.572]
[1730999849385,12.35793175,194.27,194.17,2.572]
[1730999849585,4.42,194.26,194.17,2.572]
[1730999850782,2.571,194.25,194.17,2.572]
[1730999850981,4.42,194.26,194.14,1.1932]
[1730999851179,12.35793175,194.24,194.14,1.1932]
[1730999851378,14.92913175,194.24,194.14,1.1932]
[1730999851582,12.35793175,194.24,194.17,2.572]
[1730999851886,16.77793175,194.26,194.15,12.35793175]
[1730999852188,19.34893175,194.26,194.15,12.35793175]
[1730999852387,19.34893175,194.26,194.18,2.5718]
[1730999852683,12.35793175,194.29,194.19,1.193]
[1730999852892,12.35793175,194.32,194.21,12.35793175]
[1730999853091,16.77793175,194.32,194.22,1.2059]
[1730999853286,2.5704,194.3,194.22,1.2059]
[1730999853484,19.40761849,194.32,194.25,2.5709]
[1730999853689,19.40761849,194.32,194.22,1.2059]
[1730999853885,2.5702,194.31,194.22,1.2059]
[1730999854085,12.35793175,194.3,194.22,3.7772]
[1730999855396,47.82078492,194.34,194.22,1.2059]
[1730999855589,12.35793175,194.36,194.24,12.35793175]
[1730999856084,12.35793175,194.34,194.24,12.35793175]
[1730999856283,12.35793175,194.34,194.28,2.5706]
[1730999856496,12.35793175,194.34,194.24,12.35793175]
[1730999856497,12.35793175,194.36,194.24,12.35793175]
[1730999857491,2.5697,194.35,194.29,2.5703]
[1730999857789,2.5697,194.35,194.24,12.35793175]
[1730999857989,7.0380411,194.37,194.24,12.35793175]
[1730999858292,16.77793175,194.37,194.24,12.35793175]
[1730999858894,2.5696,194.36,194.31,2.5702]
[1730999859288,19.34733175,194.37,194.31,2.5702]
[1730999859793,16.77793175,194.37,194.31,2.5702]
[1730999859994,2.5696,194.36,194.31,2.5702]
[1730999860496,74.70827399,194.55,194.29,12.35793175]
[1730999860694,12.35793175,194.43,194.31,12.35793175]
[1730999860900,2.56129524,194.42,194.21,1.2413]
[1730999861197,12.35793175,194.4,194.29,12.35793175]
[1730999861385,12.35793175,194.37,194.26,12.35793175]
[1730999861588,4.92,194.47,194.26,12.35793175]
[1730999861888,12.35793175,194.37,194.26,12.35793175]
[1730999862084,2.57929992,194.36,194.26,12.35793175]
[1730999862286,5.14889992,194.36,194.26,12.35793175]
[1730999862484,12.35793175,194.37,194.26,12.35793175]
[1730999862997,2.5695,194.36,194.3,2.5703]
[1730999863602,19.84713175,194.39,194.33,2.5699]
[1730999863805,19.84713175,194.39,194.29,12.35793175]
[1730999864100,2.5693,194.38,194.26,12.35793175]
[1730999864288,12.35793175,194.37,194.26,12.35793175]
[1730999865593,12.35793175,194.37,194.3,2.5702]
[1730999865794,12.35793175,194.39,194.26,12.35793175]
[1730999866904,2.5693,194.38,194.26,12.35793175]
[1730999868893,2.5693,194.38,194.32,2.57]
[1730999869707,2.5696,194.36,194.26,12.35793175]
[1730999870302,2.5696,194.36,194.3,2.5702]
[1730999870699,2.5693,194.38,194.32,2.57]
[1730999871603,2.5697,194.35,194.24,12.35793175]
[1730999871812,2.5697,194.35,194.25,1.2332]
[1730999872110,2.5697,194.35,194.29,2.5704]
[1730999872800,2.55177847,194.42,194.28,12.35793175]
[1730999873001,12.35793175,194.4,194.29,2.4263]
[1730999873514,14.92733175,194.38,194.32,2.57]
[1730999874105,14.92733175,194.38,194.29,2.4263]
[1730999874106,12.35793175,194.38,194.31,2.5702]
[1730999874313,12.35793175,194.38,194.29,2.4263]
[1730999874702,2.5698,194.35,194.29,4.9968]
[1730999874903,12.35793175,194.35,194.29,4.9968]
[1730999875407,14.92763175,194.35,194.29,4.9968]
[1730999876508,12.35793175,194.35,194.31,2.5702]
[1730999876716,2.57068718,194.39,194.29,2.4263]
[1730999876717,12.35793175,194.38,194.29,2.4263]
[1730999877108,14.92723175,194.38,194.32,2.57]
[1730999877514,2.57738243,194.39,194.21,1.26]
[1730999877515,12.35793175,194.35,194.21,1.26]
[1730999877710,14.92773175,194.35,194.28,2.5706]
[1730999878014,12.35793175,194.35,194.22,12.35793175]
[1730999878316,12.35793175,194.35,194.25,12.35793175]